{"text_format":"1","workbook":"xlsx","n_sheets":2,"sheets":["Hold","Kampprogram"],"not_rendered":{"charts":0,"images":0,"macros":1,"external_links":0,"defined_names":1,"comments":0,"pivot_tables":0},"unopened":[],"bounds":{"document_bytes":16777216,"sheet_cells":100000,"rows_first":2000,"rows_last":500,"rows_between":2000,"halvings":0,"cell_chars":16384,"cell_head_chars":4096},"cells_cut":0,"cells_raw":0,"read":"whole","date_system":"1900"}

{"sheet":"Hold","index":0,"n_rows":8,"n_cols":2,"rows_kept":8,"cut":false,"hidden":false,"merged":[]}
[null,"Hold"]
[1,"perle"]
[2,"løg"]
[3,"hvid"]
[4,"sort"]
[5,"blå"]
[6,"rødlig"]
[7,"passion"]

{"sheet":"Kampprogram","index":1,"n_rows":44,"n_cols":94,"rows_kept":44,"cut":false,"hidden":false,"merged":[[20,82,21,86],[0,0,1,55],[3,7,3,11],[3,20,3,21],[3,23,3,27],[3,37,3,41],[25,61,30,61],[2,61,22,61],[25,68,25,74],[26,68,26,69],[26,72,26,74],[28,69,28,74],[7,9,7,10],[7,11,7,46],[7,47,7,48],[8,9,8,10],[8,11,8,46],[8,47,8,48],[5,9,5,46],[5,47,5,48],[6,9,6,10],[6,11,6,46],[6,47,6,48],[11,9,11,10],[11,11,11,46],[11,47,11,48],[12,9,12,10],[12,11,12,46],[12,47,12,48],[9,9,9,10],[9,11,9,46],[9,47,9,48],[10,9,10,10],[10,11,10,46],[10,47,10,48],[15,48,15,52],[15,53,15,54],[16,1,16,2],[16,3,16,5],[16,6,16,8],[16,9,16,13],[16,14,16,29],[16,31,16,47],[16,48,16,49],[16,51,16,52],[16,53,16,54],[15,1,15,2],[15,3,15,5],[15,6,15,8],[15,9,15,13],[15,14,15,47],[17,31,17,47],[17,48,17,49],[17,51,17,52],[17,53,17,54],[18,1,18,2],[18,3,18,5],[18,6,18,8],[18,9,18,13],[18,14,18,29],[18,31,18,47],[18,48,18,49],[18,51,18,52],[18,53,18,54],[17,1,17,2],[17,3,17,5],[17,6,17,8],[17,9,17,13],[17,14,17,29],[19,31,19,47],[19,48,19,49],[19,51,19,52],[19,53,19,54],[20,1,20,2],[20,3,20,5],[20,6,20,8],[20,9,20,13],[20,14,20,29],[20,31,20,47],[20,48,20,49],[20,51,20,52],[20,53,20,54],[19,1,19,2],[19,3,19,5],[19,6,19,8],[19,9,19,13],[19,14,19,29],[21,31,21,47],[21,48,21,49],[21,51,21,52],[21,53,21,54],[22,1,22,2],[22,3,22,5],[22,6,22,8],[22,9,22,13],[22,14,22,29],[22,31,22,47],[22,48,22,49],[22,51,22,52],[22,53,22,54],[21,1,21,2],[21,3,21,5],[21,6,21,8],[21,9,21,13],[21,14,21,29],[23,31,23,47],[23,48,23,49],[23,51,23,52],[23,53,23,54],[24,1,24,2],[24,3,24,5],[24,6,24,8],[24,9,24,13],[24,14,24,29],[24,31,24,47],[24,48,24,49],[24,51,24,52],[24,53,24,54],[23,1,23,2],[23,3,23,5],[23,6,23,8],[23,9,23,13],[23,14,23,29],[25,31,25,47],[25,48,25,49],[25,51,25,52],[25,53,25,54],[26,1,26,2],[26,3,26,5],[26,6,26,8],[26,9,26,13],[26,14,26,29],[26,31,26,47],[26,48,26,49],[26,51,26,52],[26,53,26,54],[25,1,25,2],[25,3,25,5],[25,6,25,8],[25,9,25,13],[25,14,25,29],[27,31,27,47],[27,48,27,49],[27,51,27,52],[27,53,27,54],[28,1,28,2],[28,3,28,5],[28,6,28,8],[28,9,28,13],[28,14,28,29],[28,31,28,47],[28,48,28,49],[28,51,28,52],[28,53,28,54],[27,1,27,2],[27,3,27,5],[27,6,27,8],[27,9,27,13],[27,14,27,29],[29,31,29,47],[29,48,29,49],[29,51,29,52],[29,53,29,54],[30,1,30,2],[30,3,30,5],[30,6,30,8],[30,9,30,13],[30,14,30,29],[30,31,30,47],[30,48,30,49],[30,51,30,52],[30,53,30,54],[29,1,29,2],[29,3,29,5],[29,6,29,8],[29,9,29,13],[29,14,29,29],[31,31,31,47],[31,48,31,49],[31,51,31,52],[31,53,31,54],[32,1,32,2],[32,3,32,5],[32,6,32,8],[32,9,32,13],[32,14,32,29],[32,31,32,47],[32,48,32,49],[32,51,32,52],[32,53,32,54],[31,1,31,2],[31,3,31,5],[31,6,31,8],[31,9,31,13],[31,14,31,29],[33,31,33,47],[33,48,33,49],[33,51,33,52],[33,53,33,54],[34,1,34,2],[34,3,34,5],[34,6,34,8],[34,9,34,13],[34,14,34,29],[34,31,34,47],[34,48,34,49],[34,51,34,52],[34,53,34,54],[33,1,33,2],[33,3,33,5],[33,6,33,8],[33,9,33,13],[33,14,33,29],[35,31,35,47],[35,48,35,49],[35,51,35,52],[35,53,35,54],[36,1,36,2],[36,3,36,5],[36,6,36,8],[36,9,36,13],[36,14,36,29],[36,31,36,47],[36,48,36,49],[36,51,36,52],[36,53,36,54],[35,1,35,2],[35,3,35,5],[35,6,35,8],[35,9,35,13],[35,14,35,29],[43,1,43,13],[38,1,38,2],[38,3,38,13],[38,14,38,47],[38,48,38,52],[39,1,40,2],[39,3,40,13],[39,14,39,29],[39,31,39,47],[39,48,40,49],[39,50,40,50],[39,51,40,52],[40,14,40,29],[40,31,40,47],[43,14,43,29],[43,30,43,47],[43,48,43,52]]}
["U6-Drenge",null,null,null,null,null,null,null,null,null,null,null,null,null,null,null,null,null,null,null,null,null,null,null,null,null,null,null,null,null,null,null,null,null,null,null,null,null,null,null,null,null,null,null,null,null,null,null,null,null,null,null,null,null,null,null,null,null,null,null,null,null,null,null,null,null,null,null,null,null,null,null,null,null,null,null,null,null,"ca","cb","cc","cd","ce","cf","cg","ch","ci","cj","ck","cl","cm","cn","co","cp"]
[null,null,null,null,null,null,null,null,null,null,null,null,null,null,null,null,null,null,null,null,null,null,null,null,null,null,null,null,null,null,null,null,null,null,null,null,null,null,null,null,null,null,null,null,null,null,null,null,null,null,null,null,null,null,null,null,null,null,null,null,null,null,null,null,null,null,null,null,null,null,null,null,null,null,null,null,"Team 1","Team 2","Goals","Goals",null,"Place","Team","Win","Draw","Lose","GF","GA","GF - GA","Goals Rank","Points","Rank"]
[null,null,null,null,null,null,null,null,null,null,null,null,null,null,null,null,null,null,null,null,null,null,null,null,null,null,null,null,null,null,null,null,null,null,null,null,null,null,null,null,null,null,null,null,null,null,null,null,null,null,null,null,null,null,null,null,null,null,null,null,1,"A",{"$f":"CE3","v":"perle"},1,1,{"$f":"CE4","v":"løg"},null,"Place","Team","K","W","D","L","GF - GA","Points",null,{"$f":"BK3 & IF(OR(BL3=\"\",BM3=\"\"),\"\",IF(BL3>BM3,\"_win\",IF(BL3<BM3,\"_lose\",\"_draw\")))","v":"perle_draw"},{"$f":"BN3 & IF(OR(BL3=\"\",BM3=\"\"),\"\",IF(BL3<BM3,\"_win\",IF(BL3>BM3,\"_lose\",\"_draw\")))","v":"løg_draw"},{"$f":"IF(OR(BL3=\"\",BM3=\"\"),0,BL3)","v":1},{"$f":"IF(OR(BL3=\"\",BM3=\"\"),0,BM3)","v":1},null,{"$f":"IF(SUM(CF3:CK3)=0,0,RANK(CN3,$CN$3:$CN$9,0))","v":1},{"$f":"Hold!B2","v":"perle"},{"$f":"COUNTIF(BY:BZ,CE3&\"_win\")","v":5},{"$f":"COUNTIF(BY:BZ,CE3&\"_draw\")","v":1},{"$f":"COUNTIF(BY:BZ,CE3&\"_lose\")","v":0},{"$f":"SUMIF(BK:BK,CE3,CA:CA)+SUMIF(BN:BN,CE3,CB:CB)","v":31},{"$f":"SUMIF(BK:BK,CE3,CB:CB)+SUMIF(BN:BN,CE3,CA:CA)","v":1},{"$f":"CI3-CJ3","v":30},{"$f":"IF(SUM(CF3:CH3)=0,0,RANK(CK3,$CK$3:$CK$9,1))","v":6},{"$f":"CF3*3+CG3+CP3","v":16},{"$f":"CM3*10000+CL3*100+CI3","v":160631},{"$f":"7-COUNTIF($CN$3:$CN$9,\"<=\"&CN3)","v":0},0]
[null,null,null,null,null,null,"Start tid:","08:00:00",null,null,null,null,"Uhr",null,null,null,null,null,null,"Spille tid:",1,"1x","x","00:07:00",null,null,null,null,"min",null,null,null,null,null,null,null,"Pause:","00:01:00",null,null,null,null,"min",null,null,null,null,null,null,null,null,null,null,null,null,null,null,null,null,null,2,null,{"$f":"CE5","v":"hvid"},1,2,{"$f":"CE6","v":"sort"},null,1,{"$f":"IFERROR(VLOOKUP(BP4,$CD$3:$CN$9,2,FALSE),\"\")","v":"perle"},{"$f":"IFERROR(BS4+BT4+BU4,\"\")","v":6},{"$f":"IFERROR(VLOOKUP(BP4,$CD$3:$CN$9,3,FALSE),\"\")","v":5},{"$f":"IFERROR(VLOOKUP(BP4,$CD$3:$CN$9,4,FALSE),\"\")","v":1},{"$f":"IFERROR(VLOOKUP(BP4,$CD$3:$CN$9,5,FALSE),\"\")","v":0},{"$f":"IFERROR(VLOOKUP(BP4,$CD$3:$CN$9,6,FALSE) &\" - \"&VLOOKUP(BP4,$CD$3:$CN$9,7,FALSE),\"\")","v":"31 - 1"},{"$f":"IFERROR(VLOOKUP(BP4,$CD$3:$CN$9,10,FALSE),\"\")","v":16},null,{"$f":"BK4 & IF(OR(BL4=\"\",BM4=\"\"),\"\",IF(BL4>BM4,\"_win\",IF(BL4<BM4,\"_lose\",\"_draw\")))","v":"hvid_lose"},{"$f":"BN4 & IF(OR(BL4=\"\",BM4=\"\"),\"\",IF(BL4<BM4,\"_win\",IF(BL4>BM4,\"_lose\",\"_draw\")))","v":"sort_win"},{"$f":"IF(OR(BL4=\"\",BM4=\"\"),0,BL4)","v":1},{"$f":"IF(OR(BL4=\"\",BM4=\"\"),0,BM4)","v":2},null,1,{"$f":"Hold!B3","v":"løg"},5,1,0,31,1,{"$f":"CI4-CJ4","v":30},{"$f":"IF(SUM(CF4:CH4)=0,0,RANK(CK4,$CK$3:$CK$9,1))","v":6},{"$f":"CF4*3+CG4+CP4","v":16},{"$f":"CM4*10000+CL4*100+CI4","v":160631},{"$f":"7-COUNTIF($CN$3:$CN$9,\"<=\"&CN4)","v":0},0]
[null,null,null,null,null,null,null,null,null,null,null,null,null,null,null,null,null,null,null,null,null,null,null,null,null,null,null,null,null,null,null,null,null,null,null,null,null,null,null,null,null,null,null,null,null,null,null,null,null,null,null,null,null,null,null,null,null,null,null,null,3,null,{"$f":"CE7","v":"blå"},2,1,{"$f":"CE8","v":"rødlig"},null,2,"","",{"$f":"IFERROR(VLOOKUP(BP5,$CD$3:$CN$9,3,FALSE),\"\")","v":""},{"$f":"IFERROR(VLOOKUP(BP5,$CD$3:$CN$9,4,FALSE),\"\")","v":""},{"$f":"IFERROR(VLOOKUP(BP5,$CD$3:$CN$9,5,FALSE),\"\")","v":""},{"$f":"IFERROR(VLOOKUP(BP5,$CD$3:$CN$9,6,FALSE) &\" - \"&VLOOKUP(BP5,$CD$3:$CN$9,7,FALSE),\"\")","v":""},{"$f":"IFERROR(VLOOKUP(BP5,$CD$3:$CN$9,10,FALSE),\"\")","v":""},null,"blå_win","rødlig_lose",2,1,null,{"$f":"IF(SUM(CF5:CK5)=0,0,RANK(CN5,$CN$3:$CN$9,0))","v":7},{"$f":"Hold!B4","v":"hvid"},0,0,6,3,19,-16,1,0,103,6,0]
[null,null,null,null,null,null,null,null,null,"Stilling i Gruppe A",null,null,null,null,null,null,null,null,null,null,null,null,null,null,null,null,null,null,null,null,null,null,null,null,null,null,null,null,null,null,null,null,null,null,null,null,null,null,null,null,null,null,null,null,null,null,null,null,null,null,4,null,{"$f":"CE9","v":"passion"},0,6,{"$f":"CE3","v":"perle"},null,3,{"$f":"IFERROR(VLOOKUP(BP6,$CD$3:$CN$9,2,FALSE),\"\")","v":"passion"},{"$f":"IFERROR(BS6+BT6+BU6,\"\")","v":6},2,2,2,"5 - 14",8,null,"passion_lose","perle_win",0,6,null,{"$f":"IF(SUM(CF6:CK6)=0,0,RANK(CN6,$CN$3:$CN$9,0))","v":4},{"$f":"Hold!B5","v":"sort"},2,2,2,5,15,-10,4,8,80405,3,0]
[null,null,null,null,null,null,null,null,null,"1.",null,{"$f":"BQ4","v":"perle"},null,null,null,null,null,null,null,null,null,null,null,null,null,null,null,null,null,null,null,null,null,null,null,null,null,null,null,null,null,null,null,null,null,null,null,null,null,null,null,null,null,null,null,null,null,null,null,null,5,null,{"$f":"CE4","v":"løg"},6,0,{"$f":"CE6","v":"sort"},null,4,{"$f":"IFERROR(VLOOKUP(BP7,$CD$3:$CN$9,2,FALSE),\"\")","v":"sort"},{"$f":"IFERROR(BS7+BT7+BU7,\"\")","v":6},2,2,2,"5 - 15",8,null,"løg_win","sort_lose",6,0,null,5,{"$f":"Hold!B6","v":"blå"},2,0,4,5,18,-13,2,6,60205,4,0]
[null,null,null,null,null,null,null,null,null,"2.",null,{"$f":"BQ5","v":""},null,null,null,null,null,null,null,null,null,null,null,null,null,null,null,null,null,null,null,null,null,null,null,null,null,null,null,null,null,null,null,null,null,null,null,null,null,null,null,null,null,null,null,null,null,null,null,null,6,null,{"$f":"CE5","v":"hvid"},1,2,{"$f":"CE7","v":"blå"},null,5,{"$f":"IFERROR(VLOOKUP(BP8,$CD$3:$CN$9,2,FALSE),\"\")","v":"blå"},6,2,0,4,"5 - 18",6,null,"hvid_lose","blå_win",1,2,null,6,{"$f":"Hold!B7","v":"rødlig"},1,2,3,4,16,-12,3,5,50304,5,0]
[null,null,null,null,null,null,null,null,null,"3.",null,"passion",null,null,null,null,null,null,null,null,null,null,null,null,null,null,null,null,null,null,null,null,null,null,null,null,null,null,null,null,null,null,null,null,null,null,null,null,null,null,null,null,null,null,null,null,null,null,null,null,7,null,{"$f":"CE3","v":"perle"},6,0,{"$f":"CE8","v":"rødlig"},null,6,"rødlig",6,1,2,3,"4 - 16",5,null,{"$f":"BK9 & IF(OR(BL9=\"\",BM9=\"\"),\"\",IF(BL9>BM9,\"_win\",IF(BL9<BM9,\"_lose\",\"_draw\")))","v":"perle_win"},{"$f":"BN9 & IF(OR(BL9=\"\",BM9=\"\"),\"\",IF(BL9<BM9,\"_win\",IF(BL9>BM9,\"_lose\",\"_draw\")))","v":"rødlig_lose"},{"$f":"IF(OR(BL9=\"\",BM9=\"\"),0,BL9)","v":6},{"$f":"IF(OR(BL9=\"\",BM9=\"\"),0,BM9)","v":0},null,3,{"$f":"Hold!B8","v":"passion"},2,2,2,5,14,-9,5,8,80505,2,0]
[null,null,null,null,null,null,null,null,null,"4.",null,"sort",null,null,null,null,null,null,null,null,null,null,null,null,null,null,null,null,null,null,null,null,null,null,null,null,null,null,null,null,null,null,null,null,null,null,null,null,null,null,null,null,null,null,null,{"$f":"CE10","v":0},null,null,null,null,8,null,{"$f":"CE6","v":"sort"},1,1,{"$f":"CE9","v":"passion"},null,7,"hvid",6,0,0,6,"3 - 19",0,null,"sort_draw","passion_draw",1,1]
[null,null,null,null,null,null,null,null,null,"5.",null,"blå",null,null,null,null,null,null,null,null,null,null,null,null,null,null,null,null,null,null,null,null,null,null,null,null,null,null,null,null,null,null,null,null,null,null,null,null,null,null,null,null,null,null,null,0,null,null,null,null,9,null,{"$f":"CE4","v":"løg"},6,0,{"$f":"CE5","v":"hvid"},null,null,null,null,null,null,null,null,null,null,"løg_win","hvid_lose",6,0]
[null,null,null,null,null,null,null,null,null,"6.",null,"rødlig",null,null,null,null,null,null,null,null,null,null,null,null,null,null,null,null,null,null,null,null,null,null,null,null,null,null,null,null,null,null,null,null,null,null,null,null,null,null,null,null,null,null,null,0,null,null,null,null,10,null,{"$f":"CE7","v":"blå"},0,6,{"$f":"CE3","v":"perle"},null,null,null,null,null,null,null,null,null,null,"blå_lose","perle_win",0,6]
[null,null,null,null,null,null,null,null,null,"7.",null,"hvid",null,null,null,null,null,null,null,null,null,null,null,null,null,null,null,null,null,null,null,null,null,null,null,null,null,null,null,null,null,null,null,null,null,null,null,null,null,null,null,null,null,null,null,0,null,null,null,null,11,null,{"$f":"CE9","v":"passion"},1,0,{"$f":"CE5","v":"hvid"},null,null,null,null,null,null,null,null,null,null,"passion_win","hvid_lose",1,0]
[null,null,null,null,null,null,null,null,null,null,null,null,null,null,null,null,null,null,null,null,null,null,null,null,null,null,null,null,null,null,null,null,null,null,null,null,null,null,null,null,null,null,null,null,null,null,null,null,null,null,null,null,null,null,null,0,null,null,null,null,12,null,{"$f":"CE8","v":"rødlig"},0,6,{"$f":"CE4","v":"løg"},null,null,null,null,null,null,null,null,null,null,"rødlig_lose","løg_win",0,6]
[null,null,null,null,null,null,null,null,null,null,null,null,null,null,null,null,null,null,null,null,null,null,null,null,null,null,null,null,null,null,null,null,null,null,null,null,null,null,null,null,null,null,null,null,null,null,null,null,null,null,null,null,null,null,null,0,null,null,null,null,13,null,{"$f":"CE3","v":"perle"},6,0,{"$f":"CE6","v":"sort"},null,null,null,null,null,null,null,null,null,null,"perle_win","sort_lose",6,0]
[null,"Nr.",null,null,null,null,null,null,null,"Start",null,null,null,null,null,null,null,null,null,null,null,null,null,null,null,null,null,null,null,null,null,null,null,null,null,null,null,null,null,null,null,null,null,null,null,null,null,null,"Resultat",null,null,null,null,null,null,null,null,null,null,null,14,null,{"$f":"CE8","v":"rødlig"},0,0,{"$f":"CE9","v":"passion"},null,null,null,null,null,null,null,null,null,null,"rødlig_draw","passion_draw",0,0]
[null,1,null,null,null,null,null,null,null,{"$f":"$H$4","v":"08:00:00"},null,null,null,null,{"$f":"BK3","v":"perle"},null,null,null,null,null,null,null,null,null,null,null,null,null,null,null,"-",{"$f":"BN3","v":"løg"},null,null,null,null,null,null,null,null,null,null,null,null,null,null,null,null,{"$f":"BL3","v":1},null,":",{"$f":"BM3","v":1},null,null,null,null,null,null,null,null,15,null,{"$f":"CE4","v":"løg"},6,0,{"$f":"CE7","v":"blå"},null,null,null,null,null,null,null,null,null,null,"løg_win","blå_lose",6,0]
[null,2,null,null,null,null,null,null,null,{"$f":"J17+$U$4*$X$4+$AL$4","v":"08:08:00"},null,null,null,null,{"$f":"BK4","v":"hvid"},null,null,null,null,null,null,null,null,null,null,null,null,null,null,null,"-",{"$f":"BN4","v":"sort"},null,null,null,null,null,null,null,null,null,null,null,null,null,null,null,null,{"$f":"BL4","v":1},null,":",{"$f":"BM4","v":2},null,null,null,null,null,null,null,null,16,null,"hvid",0,6,{"$f":"CE3","v":"perle"},null,null,null,null,null,null,null,null,null,null,"hvid_lose","perle_win",0,6]
[null,3,null,null,null,null,null,null,null,"08:16:00",null,null,null,null,"blå",null,null,null,null,null,null,null,null,null,null,null,null,null,null,null,"-","rødlig",null,null,null,null,null,null,null,null,null,null,null,null,null,null,null,null,{"$f":"BL5","v":2},null,":",1,null,null,null,null,null,null,null,null,17,null,"sort",1,1,{"$f":"CE8","v":"rødlig"},null,null,null,null,null,null,null,null,null,null,"sort_draw","rødlig_draw",1,1]
[null,4,null,null,null,null,null,null,null,"08:24:00",null,null,null,null,"passion",null,null,null,null,null,null,null,null,null,null,null,null,null,null,null,"-","perle",null,null,null,null,null,null,null,null,null,null,null,null,null,null,null,null,0,null,":",6,null,null,null,null,null,null,null,null,18,null,"blå",1,3,{"$f":"CE9","v":"passion"},null,null,null,null,null,null,null,null,null,null,"blå_lose","passion_win",1,3]
[null,5,null,null,null,null,null,null,null,"08:32:00",null,null,null,null,"løg",null,null,null,null,null,null,null,null,null,null,null,null,null,null,null,"-","sort",null,null,null,null,null,null,null,null,null,null,null,null,null,null,null,null,6,null,":",0,null,null,null,null,null,null,null,null,19,null,"rødlig",2,1,{"$f":"CE5","v":"hvid"},null,null,null,null,null,null,null,null,null,null,"rødlig_win","hvid_lose",2,1,null,null,"www.excely.com"]
[null,6,null,null,null,null,null,null,null,"08:40:00",null,null,null,null,"hvid",null,null,null,null,null,null,null,null,null,null,null,null,null,null,null,"-","blå",null,null,null,null,null,null,null,null,null,null,null,null,null,null,null,null,1,null,":",2,null,null,null,null,null,null,null,null,20,null,"passion",0,6,{"$f":"CE4","v":"løg"},null,null,null,null,null,null,null,null,null,null,"passion_lose","løg_win",0,6]
[null,7,null,null,null,null,null,null,null,"08:48:00",null,null,null,null,"perle",null,null,null,null,null,null,null,null,null,null,null,null,null,null,null,"-","rødlig",null,null,null,null,null,null,null,null,null,null,null,null,null,null,null,null,6,null,":",0,null,null,null,null,null,null,null,null,21,null,{"$f":"CE6","v":"sort"},1,0,{"$f":"CE7","v":"blå"},null,null,null,null,null,null,null,null,null,null,"sort_win","blå_lose",1,0]
[null,8,null,null,null,null,null,null,null,"08:56:00",null,null,null,null,"sort",null,null,null,null,null,null,null,null,null,null,null,null,null,null,null,"-","passion",null,null,null,null,null,null,null,null,null,null,null,null,null,null,null,null,1,null,":",1]
[null,9,null,null,null,null,null,null,null,"09:04:00",null,null,null,null,"løg",null,null,null,null,null,null,null,null,null,null,null,null,null,null,null,"-","hvid",null,null,null,null,null,null,null,null,null,null,null,null,null,null,null,null,6,null,":",0,null,null,null,null,null,null,null,null,null,null,null,null,null,null,null,null,null,null,null,null,null,null,null,null,null,null,null,null,null,null,"Holdene indtastes på fanen Hold"]
[null,10,null,null,null,null,null,null,null,"09:12:00",null,null,null,null,"blå",null,null,null,null,null,null,null,null,null,null,null,null,null,null,null,"-","perle",null,null,null,null,null,null,null,null,null,null,null,null,null,null,null,null,0,null,":",6,null,null,null,null,null,null,null,null,null,null,null,null,null,null,null,null,"Finale",null,null,null,null,null,null,null,null,null,null,null,null,null,"Der må kun tastes i de grønne celler…"]
[null,11,null,null,null,null,null,null,null,"09:20:00",null,null,null,null,"passion",null,null,null,null,null,null,null,null,null,null,null,null,null,null,null,"-","hvid",null,null,null,null,null,null,null,null,null,null,null,null,null,null,null,null,{"$f":"BL13","v":1},null,":",0,null,null,null,null,null,null,null,null,22,null,null,null,null,null,null,null,{"$f":"IF(SUM(BR4:BR10)=42,BQ4,\"\")","v":""},null,null,null,{"$f":"IF(SUM(BR4:BR10)=42,BQ5,\"\")","v":""}]
[null,12,null,null,null,null,null,null,null,"09:28:00",null,null,null,null,"rødlig",null,null,null,null,null,null,null,null,null,null,null,null,null,null,null,"-","løg",null,null,null,null,null,null,null,null,null,null,null,null,null,null,null,null,0,null,":",6]
[null,13,null,null,null,null,null,null,null,"09:36:00",null,null,null,null,"perle",null,null,null,null,null,null,null,null,null,null,null,null,null,null,null,"-","sort",null,null,null,null,null,null,null,null,null,null,null,null,null,null,null,null,6,null,":",0,null,null,null,null,null,null,null,null,null,null,null,null,null,null,null,null,"Vinder:",{"$f":"IF(BS27>BT27,O40,IF(BT27>BS27,AF40,\"\"))","v":""}]
[null,14,null,null,null,null,null,null,null,"09:44:00",null,null,null,null,"rødlig",null,null,null,null,null,null,null,null,null,null,null,null,null,null,null,"-","passion",null,null,null,null,null,null,null,null,null,null,null,null,null,null,null,null,0,null,":",0]
[null,15,null,null,null,null,null,null,null,"09:52:00",null,null,null,null,"løg",null,null,null,null,null,null,null,null,null,null,null,null,null,null,null,"-","blå",null,null,null,null,null,null,null,null,null,null,null,null,null,null,null,null,6,null,":",0]
[null,16,null,null,null,null,null,null,null,"10:00:00",null,null,null,null,"hvid",null,null,null,null,null,null,null,null,null,null,null,null,null,null,null,"-","perle",null,null,null,null,null,null,null,null,null,null,null,null,null,null,null,null,0,null,":",6]
[null,17,null,null,null,null,null,null,null,"10:08:00",null,null,null,null,"sort",null,null,null,null,null,null,null,null,null,null,null,null,null,null,null,"-","rødlig",null,null,null,null,null,null,null,null,null,null,null,null,null,null,null,null,1,null,":",1]
[null,18,null,null,null,null,null,null,null,"10:16:00",null,null,null,null,"blå",null,null,null,null,null,null,null,null,null,null,null,null,null,null,null,"-","passion",null,null,null,null,null,null,null,null,null,null,null,null,null,null,null,null,1,null,":",3]
[null,19,null,null,null,null,null,null,null,"10:24:00",null,null,null,null,"rødlig",null,null,null,null,null,null,null,null,null,null,null,null,null,null,null,"-","hvid",null,null,null,null,null,null,null,null,null,null,null,null,null,null,null,null,2,null,":",1]
[null,20,null,null,null,null,null,null,null,"10:32:00",null,null,null,null,"passion",null,null,null,null,null,null,null,null,null,null,null,null,null,null,null,"-","løg",null,null,null,null,null,null,null,null,null,null,null,null,null,null,null,null,0,null,":",6]
[null,21,null,null,null,null,null,null,null,"10:40:00",null,null,null,null,"sort",null,null,null,null,null,null,null,null,null,null,null,null,null,null,null,"-","blå",null,null,null,null,null,null,null,null,null,null,null,null,null,null,null,null,1,null,":",0]
[]
[null,"Nr.",null,"Start",null,null,null,null,null,null,null,null,null,null,"Finale",null,null,null,null,null,null,null,null,null,null,null,null,null,null,null,null,null,null,null,null,null,null,null,null,null,null,null,null,null,null,null,null,null,"Resultat"]
[null,22,null,{"$f":"J37+$U$4*$X$4+$AL$4","v":"10:48:00"},null,null,null,null,null,null,null,null,null,null,{"$f":"IF(SUM(BR4:BR10)=42,BQ4,\"\")","v":""},null,null,null,null,null,null,null,null,null,null,null,null,null,null,null,"-",{"$f":"IF(SUM(BR4:BR10)=42,BQ5,\"\")","v":""},null,null,null,null,null,null,null,null,null,null,null,null,null,null,null,null,{"$f":"BS27","v":0},null,":",{"$f":"BT27","v":0}]
[null,null,null,null,null,null,null,null,null,null,null,null,null,null,"1. Gruppe A",null,null,null,null,null,null,null,null,null,null,null,null,null,null,null,null,"2. Gruppe A"]
[]
[]
[null,"Vinder",null,null,null,null,null,null,null,null,null,null,null,null,{"$f":"BR29","v":""},null,null,null,null,null,null,null,null,null,null,null,null,null,null,null,"Samlet Mål Scoret:",null,null,null,null,null,null,null,null,null,null,null,null,null,null,null,null,null,{"$f":"SUM(AW17:AW40)+SUM(AZ17:AZ40)","v":84}]